bitfinex/quotes_ETHUSD_20250430
["timestamp","ask_amount","ask_price","bid_price","bid_amount"]
[1746040124097,3.0,1788.1,1787.8,0.55]
[1746040125954,3.0,1788.3,1788.0,0.55]
[1746040126155,3.0,1788.3,1788.0,5.221]
[1746040126381,3.0,1788.3,1788.0,5.82187]
[1746040127475,3.0,1788.3,1788.1,0.7877]
[1746040127798,3.8076,1788.5,1788.1,0.7877]
[1746040128154,4.22062289,1788.5,1788.1,0.7877]
[1746040128556,3.8076,1788.5,1788.1,0.7877]
[1746040130194,3.29374793,1788.4,1788.1,0.7877]
[1746040130398,3.0,1788.3,1788.1,0.7877]
[1746040131508,3.0,1788.3,1788.1,1.448657]
[1746040133689,3.0,1788.3,1788.1,0.660957]
[1746040135323,8.59217558,1788.3,1788.1,0.660957]
[1746040135695,14.184355,1788.3,1788.1,0.660957]
[1746040136005,8.59217558,1788.3,1788.1,0.660957]
[1746040136208,14.18435501,1788.3,1788.1,0.660957]
[1746040136826,8.59217558,1788.3,1788.1,0.660957]
[1746040138312,8.59216538,1788.3,1788.1,0.660957]
[1746040138516,3.0,1788.3,1788.1,0.660957]
[1746040138825,3.0,1788.4,1788.2,6.9626522]
[1746040139026,3.0,1788.4,1788.3,1.24626522]
[1746040139327,8.59159024,1788.4,1788.3,0.55]
[1746040141719,5.59211497,1788.3,1788.1,6.720957]
[1746040142044,8.59177622,1788.4,1788.2,0.55]
[1746040142397,14.18359608,1788.4,1788.2,0.55]
[1746040142597,14.18361503,1788.4,1788.2,0.55]
[1746040142798,8.59177622,1788.4,1788.2,0.55]
[1746040142998,8.59177622,1788.4,1788.2,1.2770957]
[1746040146840,3.0,1788.4,1788.2,1.2770957]
[1746040147023,5.59140153,1788.5,1788.3,0.8058]
[1746040147531,8.59140153,1788.5,1788.4,4.669]
[1746040150948,3.0,1788.5,1788.4,4.669]
[1746040151659,8.5912776,1788.5,1788.4,4.669]
[1746040152159,8.5912776,1788.5,1788.4,5.219]
[1746040152522,8.590965,1788.6,1788.5,1.3172]
[1746040152710,8.590965,1788.6,1788.5,0.55]
[1746040157062,8.590965,1788.6,1788.4,4.669]
[1746040157063,5.5912776,1788.5,1788.4,4.669]
[1746040157567,8.88502553,1788.5,1788.4,4.669]
[1746040158262,9.404765,1788.6,1788.5,0.55]
[1746040158263,3.0,1788.6,1788.5,0.55]
[1746040159267,3.0,1788.7,1788.5,7.30561643]
[1746040159835,3.0,1788.7,1788.5,1.71434709]
[1746040160051,8.59074003,1788.7,1788.5,1.71434709]
[1746040160243,3.0,1788.7,1788.5,1.71434709]
[1746040160443,8.59075953,1788.7,1788.5,1.71434709]
[1746040160752,3.0,1788.7,1788.5,1.71434709]
[1746040161068,8.59066712,1788.7,1788.5,1.71434709]
[1746040161226,8.59066712,1788.7,1788.3,4.667]
[1746040161227,5.59188226,1788.4,1788.3,4.667]
[1746040164868,8.88563019,1788.4,1788.3,4.667]
[1746040165069,9.65553019,1788.4,1788.3,4.667]
[1746040166294,9.39461563,1788.2,1788.1,4.667]
[1746040166466,5.59346683,1787.8,1787.7,25.3427]
[1746040166789,5.59346683,1787.8,1787.7,29.208]
[1746040167157,5.59346683,1787.8,1787.7,29.758]
[1746040170096,5.59346683,1787.8,1787.7,29.208]
[1746040170274,5.59346683,1787.8,1787.7,23.148]
[1746040183114,5.59346683,1787.8,1787.7,23.698]
[1746040183308,5.59346683,1787.8,1787.7,26.14661]
[1746040184320,5.59346683,1787.8,1787.7,5.217]
[1746040188931,8.59331902,1787.9,1787.8,0.55]
[1746040193629,5.59346683,1787.8,1787.7,5.217]
[1746040195338,5.59440559,1787.5,1787.4,6.06]
[1746040195632,5.59440559,1787.5,1787.4,11.277]
[1746040195846,5.59440559,1787.5,1787.4,10.727]
[1746040196128,5.59440559,1787.5,1787.4,11.277]
[1746040196705,5.59440559,1787.5,1787.4,5.217]
[1746040200132,5.5942385,1787.6,1787.4,5.217]
[1746040200297,5.5942385,1787.6,1787.4,5.7387]
[1746040200505,5.59440559,1787.5,1787.4,5.7387]
[1746040201750,5.59440559,1787.5,1787.4,4.667]
[1746040201951,9.42408794,1787.5,1787.4,4.667]
[1746040202253,8.59440559,1787.5,1787.4,4.667]
[1746040202957,3.0,1787.6,1787.5,0.55]
[1746040203159,3.0,1787.6,1787.5,1.3227]
[1746040203333,3.0,1787.6,1787.5,1.92167]
[1746040203334,8.59409263,1787.6,1787.5,1.92167]
[1746040203537,3.0,1787.6,1787.5,1.92167]
[1746040204557,3.0,1787.7,1787.5,1.92167]
[1746040205614,8.59380848,1787.7,1787.5,1.92167]
[1746040206714,3.0,1787.7,1787.5,1.92167]
[1746040207151,8.59394507,1787.7,1787.5,1.92167]
[1746040208625,14.18801441,1787.7,1787.5,1.92167]
[1746040209057,8.59394507,1787.7,1787.5,1.92167]
[1746040209758,8.59378113,1787.7,1787.5,1.92167]
[1746040210155,5.59409263,1787.6,1787.5,1.92167]
[1746040210356,8.59378113,1787.7,1787.5,1.92167]
[1746040210534,8.59378113,1787.7,1787.6,4.667]
[1746040212461,5.59335157,1787.9,1787.7,0.55]
[1746040212622,3.0,1787.8,1787.7,0.55]
[1746040215360,8.59346683,1787.8,1787.7,0.55]
[1746040215748,3.0,1787.8,1787.7,0.55]
[1746040219364,5.59335157,1787.9,1787.7,0.55]
[1746040219540,11.18676695,1787.9,1787.7,0.55]
[1746040219862,5.59335157,1787.9,1787.7,0.55]
[1746040220173,5.59377971,1787.7,1787.6,4.667]
[1746040220328,15.30561061,1787.8,1787.6,5.217]
[1746040220529,15.30564954,1787.8,1787.6,5.217]
[1746040220757,0.8247,1787.8,1787.6,5.217]
[1746040221070,9.70634576,1787.9,1787.6,5.217]
[1746040221858,15.29978624,1787.9,1787.6,5.217]
[1746040222066,3.0,1787.9,1787.7,0.55]
[1746040222574,8.59325391,1787.9,1787.7,0.55]
[1746040225543,14.18664059,1787.9,1787.7,0.55]
[1746040225869,14.18664269,1787.9,1787.7,0.55]
[1746040226082,8.59325391,1787.9,1787.7,0.55]
[1746040226249,8.59325391,1787.9,1787.8,4.665]
[1746040230539,6.34844976,1788.2,1787.9,0.55]
[1746040230739,5.59234976,1788.2,1787.9,0.55]
[1746040230941,3.0,1788.1,1787.9,0.55]
[1746040231259,5.59234976,1788.2,1787.9,0.55]
[1746040231459,5.59234976,1788.2,1787.9,7.83544094]
[1746040231854,5.59234976,1788.2,1788.0,0.21105448]
[1746040232770,5.59204106,1788.3,1788.1,0.55]
[1746040232979,8.59204106,1788.3,1788.2,4.665]
[1746040233186,11.88578899,1788.3,1788.2,4.86326474]
[1746040234835,12.66308899,1788.3,1788.2,4.86326474]
[1746040235037,5.59329618,1787.9,1787.8,4.664]
[1746040235240,12.67494411,1787.9,1787.8,4.664]
[1746040235455,12.67494411,1787.9,1787.8,4.81836694]
[1746040241573,14.50173669,1787.9,1787.8,4.81836694]
[1746040242575,12.67494411,1787.9,1787.8,4.81836694]
[1746040242760,11.88704411,1787.9,1787.8,4.81836694]
[1746040248014,12.68324411,1787.9,1787.8,4.81836694]
[1746040254113,12.68324411,1787.9,1787.8,0.15436694]
[1746040257376,5.59409263,1787.6,1787.5,4.663]
[1746040257914,8.59409263,1787.6,1787.5,4.663]
[1746040265320,8.59409263,1787.6,1787.5,4.8228685]
[1746040269026,5.59363919,1787.8,1787.5,6.12535535]
[1746040269196,5.59332899,1787.9,1787.6,0.55]
[1746040269398,9.70625227,1788.3,1787.7,0.8202]
[1746040269713,5.5926106,1788.1,1787.8,0.55]
[1746040269914,5.5926106,1788.1,1787.9,5.4832]
[1746040270221,3.0,1788.0,1787.9,6.19262692]
[1746040271235,8.59284116,1788.0,1787.9,6.19262692]
[1746040271930,8.59271801,1788.1,1787.9,6.19262692]
[1746040272520,5.59169376,1788.4,1788.0,6.14267738]
[1746040272708,3.0,1788.3,1788.1,1.56054342]
[1746040273528,8.59205934,1788.3,1788.1,1.56054342]
[1746040273745,8.59205934,1788.3,1788.1,0.94627568]
[1746040274326,3.0,1788.3,1788.1,0.94627568]
[1746040275229,5.59221563,1788.2,1788.1,0.15937568]
[1746040275626,11.18471631,1788.2,1788.0,0.55]
[1746040275832,5.59221563,1788.2,1788.1,0.15779364]
[1746040280429,8.59203878,1788.3,1788.1,0.97869364]
[1746040280624,8.59203878,1788.3,1788.1,1.69084356]
[1746040280844,5.59221563,1788.2,1788.1,1.52869364]
[1746040283265,5.59221563,1788.2,1788.1,0.15779364]
[1746040283572,5.59272153,1788.1,1787.9,5.4285]
[1746040283718,5.59272153,1788.1,1788.0,0.15431576]
[1746040284068,8.59272153,1788.1,1788.0,0.15431576]
[1746040284424,5.59284116,1788.0,1787.9,4.66]
[1746040295566,5.59284116,1788.0,1787.9,4.81626225]
[1746040296171,9.41862153,1788.1,1787.9,4.81626225]
[1746040296459,8.59272153,1788.1,1787.9,4.81626225]
[1746040296658,14.18550146,1788.1,1787.9,4.81626225]
[1746040297364,14.18553407,1788.1,1787.9,4.81626225]
[1746040297566,8.59272153,1788.1,1787.9,4.81626225]
[1746040297928,3.0,1788.1,1788.0,1.376]
[1746040298132,5.59171232,1788.4,1788.1,5.59248193]
[1746040298331,3.0,1788.3,1788.0,7.12487023]
[1746040298564,3.0,1788.3,1788.2,0.9821854]
[1746040298767,8.59190292,1788.3,1788.2,0.826]
[1746040299063,8.59190292,1788.3,1788.2,0.1561854]
[1746040299276,5.59221563,1788.2,1788.1,1.3677]
[1746040300344,8.59190292,1788.3,1788.1,1.3677]
[1746040301058,3.0,1788.3,1788.1,1.3677]
[1746040301260,3.0,1788.3,1788.1,2.06374363]
[1746040301574,8.59194141,1788.3,1788.1,2.06374363]
[1746040301771,5.59221563,1788.2,1787.9,5.14162623]
[1746040301980,5.59221563,1788.2,1787.9,5.4154]
[1746040301981,5.59278143,1788.1,1787.9,5.4154]
[1746040302182,11.18557427,1788.1,1787.9,5.4154]
[1746040302484,5.59230661,1788.2,1787.9,5.4154]
[1746040302689,5.59230661,1788.2,1787.9,11.00853977]
[1746040303282,5.59230661,1788.2,1787.9,11.06446572]
[1746040303469,5.59230661,1788.2,1787.9,7.13617729]
[1746040304752,5.59230661,1788.2,1787.9,12.72932791]
[1746040305282,5.59230661,1788.2,1788.0,0.55]
[1746040306387,8.59209113,1788.3,1788.0,0.55]
[1746040306594,14.18424413,1788.3,1788.0,0.55]
[1746040306754,8.59209113,1788.3,1788.0,0.55]
[1746040307176,8.59209113,1788.3,1788.0,6.1428409]
[1746040307376,8.59209113,1788.3,1788.0,8.03005743]
[1746040307583,3.0,1788.3,1788.0,8.02988164]
[1746040307757,3.0,1788.3,1788.1,0.7794]
[1746040309274,8.59199105,1788.3,1788.1,0.7794]
[1746040309681,3.0,1788.3,1788.1,0.7794]
[1746040309858,8.59201531,1788.3,1788.1,0.7794]
[1746040310062,8.59192069,1788.3,1788.1,0.7794]
[1746040310269,3.0,1788.3,1788.2,0.15505548]
[1746040310487,8.59190292,1788.3,1788.1,0.7794]
[1746040310682,8.59190292,1788.3,1788.2,0.15505548]
[1746040310898,8.59190292,1788.3,1788.1,0.7794]
[1746040311097,8.59190292,1788.3,1788.2,0.15505548]
[1746040311300,8.59190292,1788.3,1788.1,0.7794]
[1746040311600,8.59190292,1788.3,1788.1,1.3294]
[1746040311601,14.184047,1788.3,1788.1,1.3294]
[1746040312901,8.59190292,1788.3,1788.1,1.3294]
[1746040313810,14.1840405,1788.3,1788.1,1.3294]
[1746040314015,8.59190292,1788.3,1788.1,1.3294]
[1746040314616,5.59190292,1788.3,1788.1,1.3294]
[1746040314909,8.59142496,1788.5,1788.1,7.80285412]
[1746040315220,5.59084192,1788.7,1788.4,6.1415369]
[1746040315425,3.0,1788.6,1788.5,5.207]
[1746040315735,5.59084192,1788.7,1788.5,5.207]
[1746040315888,5.59084192,1788.7,1788.5,5.9681]
[1746040316083,3.0,1788.7,1788.5,5.9681]
[1746040316627,5.59045952,1788.8,1788.5,12.71522726]
[1746040317416,5.59045952,1788.8,1788.5,7.12405399]
[1746040317819,11.18108262,1788.8,1788.5,7.12405399]
[1746040318615,5.59068133,1788.7,1788.5,7.12405399]
[1746040319033,8.59052586,1788.8,1788.5,7.12405399]
[1746040319526,14.18113138,1788.8,1788.5,7.12405399]
[1746040320131,14.1811218,1788.8,1788.5,7.12405399]
[1746040320293,8.59052586,1788.8,1788.5,7.12405399]
[1746040321028,14.18112244,1788.8,1788.5,7.12405399]
[1746040321332,8.59052586,1788.8,1788.5,7.12405399]
[1746040321832,14.18111233,1788.8,1788.5,7.12405399]
[1746040322130,5.59067467,1788.7,1788.5,7.12405399]
[1746040322326,8.59052586,1788.8,1788.5,7.12405399]
[1746040324232,8.59052586,1788.8,1788.5,12.71523156]
[1746040324532,8.59052586,1788.8,1788.6,1.27152316]
[1746040324733,4.10714793,1789.0,1788.6,1.27152316]
[1746040324734,6.40330372,1789.0,1788.7,0.55]
[1746040324938,11.17989835,1789.0,1788.7,0.55]
[1746040325308,5.59011398,1788.9,1788.7,0.55]
[1746040325519,5.59011398,1788.9,1788.8,0.14976207]
[1746040327633,5.58985671,1789.0,1788.8,0.14976207]
[1746040328029,5.59002739,1788.9,1788.8,0.14976207]
[1746040328338,11.17982727,1789.0,1788.8,0.14976207]
[1746040328490,11.17982727,1789.0,1788.9,4.656]
[1746040328491,8.58985671,1789.0,1788.9,4.656]
[1746040328912,8.58985671,1789.0,1788.9,4.80426842]
[1746040331498,5.59512744,1789.1,1788.9,5.28469526]
[1746040332143,5.59512744,1789.1,1789.0,0.55]
[1746040332431,0.00558319,1789.1,1789.0,0.69824283]
[1746040333632,0.00558319,1789.1,1789.0,6.28795775]
[1746040334032,0.00558319,1789.1,1789.0,7.10205775]
[1746040334233,0.00558319,1789.1,1789.0,8.88489298]
[1746040336845,0.00558319,1789.1,1789.0,8.94077817]
[1746040337217,0.00558319,1789.1,1789.0,15.00077817]
[1746040337543,0.00558319,1789.1,1789.0,14.94489298]
[1746040340043,0.00558319,1789.1,1789.0,15.04710491]
[1746040340442,0.00558319,1789.1,1789.0,15.64710491]
[1746040343555,0.00558319,1789.1,1789.0,20.29910491]
[1746040344122,0.00558319,1789.1,1789.0,13.89528999]
[1746040344326,0.00558319,1789.1,1789.0,0.85045476]
[1746040344546,12.70093361,1789.1,1789.0,4.80024283]
[1746040345055,12.70093361,1789.1,1789.0,0.14824283]
[1746040345414,8.59002739,1788.9,1788.8,4.652]
[1746040345841,9.40222739,1788.9,1788.8,4.652]
[1746040347453,8.88875294,1789.1,1788.8,5.202]
[1746040347454,6.36573477,1789.1,1788.8,5.202]
[1746040347673,0.77618319,1789.1,1788.9,0.55]
[1746040347960,3.00558319,1789.1,1788.9,0.55]
[1746040348521,8.59504227,1789.1,1788.9,0.55]
[1746040350219,3.00558319,1789.1,1788.9,0.55]
[1746040350624,3.00558319,1789.1,1789.0,0.7908]
[1746040350625,0.00558319,1789.1,1789.0,0.7908]
[1746040350819,0.00558319,1789.1,1789.0,1.48385356]
[1746040352247,0.00558319,1789.1,1789.0,0.7908]
[1746040353957,0.00558319,1789.1,1789.0,1.3408]
[1746040354258,0.00558319,1789.1,1789.0,7.04710401]
[1746040354856,0.00557477,1789.1,1789.0,7.04710401]
[1746040358886,0.00557477,1789.1,1789.0,7.14931594]
[1746040359045,0.00557477,1789.1,1789.0,8.42324405]
[1746040362838,0.00557477,1789.1,1789.0,9.02324405]
[1746040363951,0.00557477,1789.1,1789.0,15.13912649]
[1746040364151,0.00557477,1789.1,1789.0,15.08324405]
[1746040368577,0.00557477,1789.1,1789.0,33.55224405]
[1746040373870,0.7819,1789.8,1789.7,0.55]
[1746040374037,0.7819,1789.8,1789.7,5.81276499]
[1746040374243,8.58721644,1789.8,1789.7,0.11240999]
[1746040374467,8.58721644,1789.8,1789.4,10.709]
[1746040374468,6.37005311,1789.5,1789.4,10.709]
[1746040375279,9.37005311,1789.5,1789.4,4.649]
[1746040375886,0.7819,1789.5,1789.4,4.649]
[1746040376185,6.37005311,1789.5,1789.4,5.199]
[1746040376389,0.7819,1789.5,1789.4,5.199]
[1746040377594,6.37005311,1789.5,1789.4,5.199]
[1746040378060,0.7819,1789.5,1789.4,5.199]
[1746040378892,6.37005311,1789.5,1789.4,5.199]
[1746040379691,6.37005311,1789.5,1789.4,4.649]
[1746040379867,7.56585838,1789.5,1789.4,4.649]
[1746040380257,10.56585838,1789.5,1789.4,4.649]
[1746040380805,10.58074073,1789.5,1789.4,4.649]
[1746040380972,10.56585838,1789.5,1789.4,4.649]
[1746040385179,10.58074073,1789.5,1789.4,4.649]
[1746040385476,10.56585838,1789.5,1789.4,4.649]
[1746040389318,10.56585838,1789.5,1789.4,4.75422305]
[1746040389515,10.56585838,1789.5,1789.4,0.10522305]
[1746040389674,8.58877773,1789.3,1789.2,4.649]
[1746040390015,12.66502566,1789.3,1789.2,4.75427422]
[1746040390182,14.49038891,1789.3,1789.2,4.75427422]
[1746040394020,14.49038891,1789.3,1789.2,0.10527422]
[1746040394314,9.36800249,1789.1,1789.0,4.649]
[1746040394503,5.59057369,1788.8,1788.6,18.47]
[1746040394708,5.59057369,1788.8,1788.7,4.649]
[1746040397888,0.7726,1789.2,1788.8,6.14022662]
[1746040398087,6.36188963,1789.2,1788.8,6.14022662]
[1746040398282,5.58893627,1789.3,1789.0,6.93331048]
[1746040398487,5.58893627,1789.3,1789.1,4.65]
[1746040398940,5.58832968,1789.5,1789.2,0.55]
[1746040399610,5.58866093,1789.4,1789.2,0.55]
[1746040400188,11.17740145,1789.4,1789.2,0.55]
[1746040400387,5.58866093,1789.4,1789.2,0.55]
[1746040401222,5.58831227,1789.5,1789.2,0.55]
[1746040401793,7.08104793,1789.6,1789.3,0.8158]
[1746040401794,9.37525874,1789.6,1789.3,0.8158]
[1746040402122,5.58771426,1789.7,1789.4,0.55]
[1746040402327,5.58771426,1789.7,1789.5,4.649]
[1746040402491,5.58784085,1789.6,1789.5,4.649]
[1746040405843,5.58771426,1789.7,1789.5,4.649]
[1746040406007,0.8285,1789.9,1789.6,0.55]
[1746040406205,5.58704554,1789.9,1789.6,6.93152182]
[1746040406503,5.58704554,1789.9,1789.6,1.3437]
[1746040406726,11.17420318,1789.9,1789.6,1.3437]
[1746040407600,5.58704554,1789.9,1789.6,1.3437]
[1746040407942,5.58722579,1789.8,1789.6,1.3437]
[1746040408433,5.58704554,1789.9,1789.6,1.3437]
[1746040408936,11.17419928,1789.9,1789.6,1.3437]
[1746040409102,5.58704554,1789.9,1789.6,1.3437]
[1746040410327,5.5872517,1789.8,1789.6,1.3437]
[1746040413833,11.17422002,1789.9,1789.6,1.3437]
[1746040414008,5.58722892,1789.8,1789.6,1.3437]
[1746040414409,5.58752863,1789.7,1789.6,0.55]
[1746040414849,5.58784085,1789.6,1789.5,4.649]
[1746040415226,5.58784085,1789.6,1789.5,5.199]
[1746040415424,5.58752863,1789.7,1789.5,5.199]
[1746040416748,5.58784085,1789.6,1789.5,5.199]
[1746040417247,5.58752863,1789.7,1789.5,5.199]
[1746040419357,5.58829687,1789.5,1789.2,19.2991]
[1746040419566,5.58868172,1789.4,1789.3,4.647]
[1746040419766,5.58868172,1789.4,1789.3,5.197]
[1746040420361,5.58829687,1789.5,1789.3,5.197]
[1746040420719,9.63238026,1789.6,1789.3,5.197]
[1746040420925,5.58815717,1789.5,1789.3,5.197]
[1746040421332,11.17612891,1789.6,1789.3,5.197]
[1746040422248,5.5881768,1789.5,1789.3,5.197]
[1746040426442,5.5884654,1789.4,1789.3,5.197]
[1746040427242,5.5881768,1789.5,1789.3,5.197]
[1746040429276,5.58877773,1789.3,1789.2,18.469]
[1746040429464,6.3997654,1789.4,1789.2,23.666]
[1746040429661,5.5884654,1789.4,1789.2,23.666]
[1746040429987,5.5884654,1789.4,1789.2,23.116]
[1746040430480,6.3996079,1789.5,1789.2,28.70507793]
[1746040430694,6.3996079,1789.5,1789.2,23.116]
[1746040432178,6.3996079,1789.5,1789.2,28.70505132]
[1746040432375,5.5883079,1789.5,1789.2,28.70505132]
[1746040433379,6.41081005,1789.6,1789.3,1.3338]
[1746040434300,5.58877773,1789.3,1789.2,23.116]
[1746040434589,5.58860823,1789.4,1789.2,23.666]
[1746040436246,5.58834627,1789.5,1789.3,0.55]
[1746040439625,11.17672666,1789.5,1789.3,0.55]
[1746040439776,5.5884654,1789.4,1789.3,0.55]
[1746040441026,6.39937773,1789.3,1789.2,0.55]
[1746040441192,6.39937773,1789.3,1789.2,5.196]
[1746040442482,5.5884654,1789.4,1789.2,5.196]
[1746040444113,11.17716957,1789.4,1789.2,5.196]
[1746040444531,5.5884654,1789.4,1789.2,5.196]
[1746040446094,5.58791631,1789.6,1789.3,6.36114791]
[1746040446289,6.39303002,1789.7,1789.4,0.55]
[1746040446490,3.0,1789.6,1789.4,6.13843205]
[1746040446810,8.58784651,1789.6,1789.4,1.79994934]
[1746040448221,8.58784651,1789.6,1789.4,0.55]
[1746040449120,5.58784651,1789.6,1789.4,0.55]
[1746040449426,11.17553408,1789.7,1789.4,0.55]
[1746040450128,3.0,1789.7,1789.4,0.55]
[1746040450322,6.40901766,1789.9,1789.6,0.55]
[1746040450525,5.58701766,1789.9,1789.6,5.196]
[1746040450734,5.58701766,1789.9,1789.6,11.94085106]
[1746040450893,5.58701766,1789.9,1789.6,6.35312341]
[1746040452264,5.58675218,1790.0,1789.6,11.94089671]
[1746040452430,0.4153279,1790.3,1789.9,0.55]
[1746040452431,5.5862663,1790.2,1789.9,0.55]
[1746040452730,5.5862663,1790.2,1790.0,4.646]
[1746040453032,6.40608388,1790.5,1790.1,6.13610998]
[1746040453530,6.40606896,1790.5,1790.1,6.13610998]
[1746040453697,5.58535371,1790.4,1790.1,6.13610128]
[1746040454097,5.58518692,1790.5,1790.1,6.13610128]
[1746040454531,11.17047036,1790.5,1790.1,6.13610128]
[1746040454828,5.58534405,1790.4,1790.3,0.55]
[1746040455134,5.58534405,1790.4,1790.3,5.196]
[1746040455336,5.58518692,1790.5,1790.3,5.196]
[1746040455700,5.58534405,1790.4,1790.3,5.196]
[1746040459227,5.58534405,1790.4,1790.3,4.646]
[1746040459539,5.58617491,1790.2,1789.8,6.37321192]
[1746040459768,5.58617491,1790.2,1789.9,4.645]
[1746040460049,5.58617491,1790.2,1790.0,0.55]
[1746040460650,5.58628009,1790.1,1790.0,0.55]
[1746040461207,5.58628009,1790.1,1789.4,4.85215591]
[1746040461208,6.37515311,1789.5,1789.4,4.85215591]
[1746040461445,12.66890104,1789.5,1789.4,4.85215591]
[1746040462348,5.5884654,1789.4,1789.3,4.645]
[1746040463581,5.58877773,1789.3,1789.2,4.85215591]
[1746040463732,5.58877773,1789.3,1789.2,9.49615591]
[1746040464236,5.58877773,1789.3,1789.2,10.04615591]
[1746040464848,5.58877773,1789.3,1789.2,5.194]
[1746040468970,5.58971492,1789.0,1788.9,6.06]
[1746040469146,5.58971492,1789.0,1788.9,5.209]
[1746040469669,5.58953831,1789.1,1789.0,0.55]
[1746040475175,5.58971492,1789.0,1788.9,4.659]
[1746040475343,5.58971492,1789.0,1788.9,5.209]
[1746040475539,5.58953831,1789.1,1789.0,0.55]
[1746040477072,0.7645,1789.4,1789.0,1.8298]
[1746040477253,0.7645,1789.4,1789.2,0.55]
[1746040477254,5.58858531,1789.4,1789.2,0.55]
[1746040477454,5.58858531,1789.4,1789.3,5.21]
[1746040477971,5.58858531,1789.4,1789.3,4.66]
[1746040484881,5.58858531,1789.4,1789.3,5.21]
[1746040495184,5.59033989,1788.8,1788.7,18.464]
[1746040495388,6.37813989,1788.8,1788.7,23.124]
[1746040495593,5.59033989,1788.8,1788.7,23.674]
[1746040495794,5.59033989,1788.8,1788.7,23.124]
[1746040496169,5.59033989,1788.8,1788.7,23.674]
[1746040497392,5.59015192,1788.9,1788.8,0.55]
[1746040500792,5.58989228,1789.0,1788.8,0.55]
[1746040502188,5.59002739,1788.9,1788.8,0.55]
[1746040502508,5.58987853,1789.0,1788.8,0.55]
[1746040503875,5.59002739,1788.9,1788.8,0.55]
[1746040504987,0.8068,1789.4,1789.0,0.55]
[1746040505205,5.58771994,1789.7,1789.3,0.55]
[1746040505510,5.58725833,1789.8,1789.5,0.55]
[1746040505710,5.58754705,1789.7,1789.6,5.202]
[1746040506013,11.17470934,1789.8,1789.6,5.202]
[1746040506176,5.58725833,1789.8,1789.6,5.202]
[1746040506378,11.17477698,1789.8,1789.6,5.202]
[1746040506699,5.58725833,1789.8,1789.6,5.202]
[1746040507206,5.58752863,1789.7,1789.6,5.202]
[1746040507775,5.58752863,1789.7,1789.3,0.87959479]
[1746040507776,5.5884654,1789.4,1789.3,0.87959479]
[1746040507977,5.5884654,1789.4,1789.3,5.30319479]
[1746040511344,5.5884654,1789.4,1789.3,4.75319479]
[1746040511621,5.58940249,1789.1,1788.7,25.3111]
[1746040511824,5.59033989,1788.8,1788.7,18.464]
[1746040511981,5.59033989,1788.8,1788.7,23.115]
[1746040512382,5.59033989,1788.8,1788.7,23.665]
[1746040512812,5.59033989,1788.8,1788.7,23.115]
[1746040513280,5.59033989,1788.8,1788.7,23.665]
[1746040514612,5.58992114,1789.0,1788.8,0.55]
[1746040514817,11.17987346,1789.0,1788.8,0.55]
[1746040514999,5.59002739,1788.9,1788.8,0.55]
[1746040515618,5.58992114,1789.0,1788.8,0.55]
[1746040515799,11.17990871,1789.0,1788.8,0.55]
[1746040516005,5.58992114,1789.0,1788.8,0.55]
[1746040516208,5.59002739,1788.9,1788.8,0.55]
[1746040516741,6.4148902,1789.1,1788.8,0.55]
[1746040516907,5.5895902,1789.1,1788.8,6.14030858]
[1746040517107,5.5895902,1789.1,1788.8,9.70108363]
[1746040517345,5.5895902,1789.1,1788.8,4.11077505]
[1746040522830,11.17922565,1789.1,1788.8,4.11077505]
[1746040523037,5.5895902,1789.1,1788.8,4.11077505]
[1746040524440,5.58925456,1789.2,1788.8,15.29115972]
[1746040524604,5.58925456,1789.2,1788.8,9.70092668]
[1746040525104,5.5894074,1789.1,1788.8,9.70092668]
[1746040525304,5.5894074,1789.1,1788.8,4.11077505]
[1746040525719,5.5894074,1789.1,1788.8,9.70109873]
[1746040528455,5.5894074,1789.1,1788.8,0.55]
[1746040528624,5.5894074,1789.1,1788.8,6.14030712]
[1746040529706,5.5894074,1789.1,1788.8,0.55]
[1746040530206,5.5894074,1789.1,1788.8,6.14032426]
[1746040530641,5.58928904,1789.2,1789.0,0.55]
[1746040530968,1.1174787,1789.7,1789.1,11.60775096]
[1746040531178,5.58817473,1789.5,1789.2,5.58886268]
[1746040531324,5.58788732,1789.6,1789.4,0.55]
[1746040531529,5.58788732,1789.6,1789.5,4.651]
[1746040533556,6.39332211,1789.7,1789.5,4.651]
[1746040533924,11.9811013,1789.7,1789.5,4.651]
[1746040534119,11.98109613,1789.7,1789.5,4.651]
[1746040534363,5.58784085,1789.6,1789.5,4.651]
[1746040535326,5.58784085,1789.6,1789.5,5.201]
[1746040540361,5.58784085,1789.6,1789.5,5.2]
[1746040543497,6.78595715,1789.6,1789.5,4.65]
[1746040546390,13.894917,1789.6,1789.5,4.65]
[1746040546595,13.88003465,1789.6,1789.5,4.65]
[1746040552969,13.88003465,1789.6,1789.1,1.3634]
[1746040552970,3.7998,1789.3,1789.2,4.65]
[1746040553272,5.59033989,1788.8,1788.7,23.119]
[1746040553516,5.60522224,1788.8,1788.7,4.65]
[1746040553737,7.52515897,1788.8,1788.7,4.65]
[1746040553898,7.51027662,1788.8,1788.7,4.65]
[1746040554796,7.92851533,1788.8,1788.7,4.65]
[1746040555813,5.5912776,1788.5,1788.4,9.50315591]
[1746040556535,5.59104266,1788.6,1788.4,9.50315591]
[1746040556741,5.59104266,1788.6,1788.4,4.651]
[1746040556901,8.59080308,1788.7,1788.5,1.3137]
[1746040558296,5.590965,1788.6,1788.5,1.3137]
[1746040559440,8.59084775,1788.7,1788.5,1.3137]
[1746040560235,3.0,1788.7,1788.5,1.3137]
[1746040560441,3.0,1788.7,1788.5,6.90485518]
[1746040560613,3.0,1788.7,1788.5,6.90495274]
[1746040560935,5.59021331,1788.9,1788.5,8.61953616]
[1746040561133,5.59021331,1788.9,1788.7,0.55]
[1746040561366,5.58983714,1789.0,1788.8,5.197]
[1746040561540,8.58954133,1789.1,1788.8,5.197]
[1746040561724,5.58954133,1789.1,1788.8,5.197]
[1746040561930,5.58954133,1789.1,1789.0,0.55]
[1746040563070,5.58890367,1789.3,1789.0,1.3675]